bitfinex-derivatives/quotes_ETHF0:USTF0_20250614
["timestamp","ask_amount","ask_price","bid_price","bid_amount"]
[1749904978852,0.85729268,2533.3,2533.2,0.78921]
[1749904979549,0.06809268,2533.3,2533.2,0.78921]
[1749904981054,0.85726268,2533.3,2533.2,0.78921]
[1749904981951,0.85726268,2533.3,2533.1,1.41081]
[1749904981952,0.78921,2533.2,2533.1,1.41081]
[1749904982354,0.85729268,2533.3,2533.2,0.78921]
[1749904983553,0.06809268,2533.3,2533.2,0.78921]
[1749904984056,0.85727268,2533.3,2533.2,0.78921]
[1749904985751,0.78921,2533.2,2533.1,4.61861]
[1749904985953,0.85728268,2533.3,2533.2,0.78921]
[1749904986252,0.06809268,2533.3,2533.2,0.78921]
[1749904987255,0.06809268,2533.3,2533.2,2.04351]
[1749904992561,0.06809268,2533.3,2533.1,4.61862]
[1749904992760,0.78921,2533.2,2533.1,1.41082]
[1749904993254,0.78924,2533.1,2533.0,0.78925]
[1749904993461,0.78923,2533.2,2533.1,0.78922]
[1749904993759,0.85729268,2533.3,2533.2,0.78921]
[1749904994851,0.78925,2533.2,2533.1,0.78922]
[1749904996058,0.7893,2532.9,2532.8,3.2078]
[1749904996363,0.7893,2532.9,2532.8,3.99713]
[1749904998165,0.78929,2533.0,2532.9,0.78928]
[1749905003171,0.06809268,2533.2,2533.1,0.78924]
[1749905003365,6.31109268,2533.2,2533.1,0.78924]
[1749905004468,7.10030268,2533.2,2533.1,0.78924]
[1749905004668,7.10030268,2533.2,2533.1,2.15904]
[1749905004867,6.31109268,2533.2,2533.1,2.15904]
[1749905005167,6.31109268,2533.2,2533.1,5.36684]
[1749905006970,0.06809268,2533.2,2533.1,5.36684]
[1749905010169,0.06809268,2533.2,2533.1,3.2078]
[1749905010370,0.06809268,2533.2,2533.1,3.99704]
[1749905010680,0.06809268,2533.2,2533.1,5.26334]
[1749905016474,0.85730268,2533.2,2533.1,3.2078]
[1749905016682,0.78924,2533.1,2533.0,0.6694]
[1749905017180,0.78924,2533.1,2533.0,1.45867]
[1749905017776,0.7893,2532.9,2532.8,3.99711]
[1749905017974,0.7893,2532.9,2532.8,3.2078]
[1749905018784,0.78939,2532.6,2532.5,3.2078]
[1749905019692,0.78939,2532.7,2532.5,3.2078]
[1749905019874,1.32661366,2532.8,2532.5,3.2078]
[1749905019875,0.78939,2532.6,2532.5,3.9972]
[1749905020975,0.78939,2532.7,2532.6,0.78938]
[1749905021176,0.78939,2532.6,2532.5,3.99721]
[1749905022076,0.78939,2532.6,2532.5,3.2078]
[1749905024183,0.78939,2532.6,2532.5,3.99723]
[1749905027292,7.56761366,2532.8,2532.5,3.2078]
[1749905027585,7.03138,2532.7,2532.6,0.78937]
[1749905028386,1.32661366,2532.8,2532.7,0.78936]
[1749905028587,6.90771366,2532.8,2532.7,0.78936]
[1749905028792,7.69704366,2532.8,2532.7,0.78936]
[1749905030185,7.69704366,2532.8,2532.5,4.491]
[1749905030186,0.78938,2532.7,2532.6,0.78937]
[1749905030387,0.78939,2532.6,2532.5,3.99722]
[1749905031189,0.78939,2532.6,2532.5,3.99719]
[1749905031488,1.47439,2532.7,2532.6,0.78939]
[1749905032690,0.78939,2532.6,2532.5,3.9972]
[1749905032989,0.78939,2532.6,2532.5,3.2078]
[1749905033489,0.85748268,2532.6,2532.5,3.2078]
[1749905034490,0.85748268,2532.6,2532.5,3.99723]
[1749905034784,0.85748268,2532.6,2532.5,3.2078]
[1749905036094,0.85748268,2532.6,2532.5,3.99723]
[1749905036596,0.85748268,2532.6,2532.5,3.2078]
[1749905037793,0.85748268,2532.6,2532.5,3.99723]
[1749905040897,0.78949,2532.3,2532.2,3.8767]
[1749905041191,0.78949,2532.3,2532.2,6.03532]
[1749905041391,6.242,2532.4,2532.2,5.2458]
[1749905041697,0.78945,2532.5,2532.4,0.78946]
[1749905041996,0.06809268,2532.6,2532.5,0.78943]
[1749905042295,0.85748268,2532.6,2532.5,0.78943]
[1749905042797,1.79714455,2532.6,2532.5,0.78943]
[1749905043901,1.79714455,2532.6,2532.3,1.3691]
[1749905043902,0.78945,2532.5,2532.4,0.78943]
[1749905044493,0.78946,2532.4,2532.3,1.3691]
[1749905045393,0.78949,2532.3,2532.2,3.8767]
[1749905046088,1.72966932,2532.3,2532.2,3.8767]
[1749905048594,7.97166932,2532.3,2532.2,3.2078]
[1749905048798,7.97166932,2532.3,2531.7,2.3594953]
[1749905048799,0.78958,2532.0,2531.9,3.9974]
[1749905049500,0.78958,2532.0,2531.9,5.3034]
[1749905049703,0.78956,2532.1,2532.0,0.78955]
[1749905049999,0.78956,2532.1,2532.0,2.09555]
[1749905051701,0.78958,2532.0,2531.9,3.9974]
[1749905052199,0.78958,2532.0,2531.9,5.3034]
[1749905053401,0.78958,2532.0,2531.9,5.30341]
[1749905055308,0.78958,2532.0,2531.9,2.09561]
[1749905058200,0.78958,2532.0,2531.9,1.306]
[1749905058598,0.78958,2532.0,2531.9,2.09561]
[1749905058906,0.78958,2532.0,2531.9,1.306]
[1749905059104,0.78961,2531.9,2531.8,3.8448]
[1749905059805,0.78961,2531.9,2531.8,4.63444]
[1749905060605,0.78961,2531.9,2531.8,3.8448]
[1749905060903,0.78961,2531.9,2531.8,4.63444]
[1749905061304,0.78961,2531.9,2531.8,3.8448]
[1749905064005,1.72935823,2531.9,2531.8,3.8448]
[1749905064209,1.72935823,2531.9,2531.8,3.2078]
[1749905064600,7.97235823,2531.9,2531.8,3.2078]
[1749905065501,0.78967,2531.7,2531.6,2.73271]
[1749905065703,0.78967,2531.7,2531.6,1.943]
[1749905066796,0.78967,2531.7,2531.6,2.73271]
[1749905067003,0.78967,2531.7,2531.6,1.943]
[1749905067203,0.06809268,2532.0,2531.6,1.943]
[1749905067402,7.03265,2531.8,2531.7,1.3164]
[1749905068308,0.78983,2531.2,2531.1,3.2078]
[1749905068501,1.72990045,2531.2,2531.1,0.6694]
[1749905068701,0.78983,2531.2,2531.1,0.6694]
[1749905069312,1.72957884,2531.2,2531.1,0.6694]
[1749905069703,0.78983,2531.2,2531.1,0.6694]
[1749905070905,0.78983,2531.2,2531.1,1.9412]
[1749905072313,0.78983,2531.2,2531.1,0.6694]
[1749905072502,0.78983,2531.2,2531.1,3.8772]
[1749905073108,0.78983,2531.2,2531.1,1.9412]
[1749905073512,0.78982,2531.3,2531.2,0.78982]
[1749905073715,0.78981,2531.3,2531.2,2.13862]
[1749905073913,0.79570546,2531.4,2531.3,0.7898]
[1749905074110,0.00592546,2531.4,2531.3,2.1386]
[1749905074310,0.79569546,2531.4,2531.3,2.1386]
[1749905075313,0.00592546,2531.4,2531.3,2.1386]
[1749905076511,0.79569546,2531.4,2531.3,2.1386]
[1749905077011,0.00592546,2531.4,2531.3,2.1386]
[1749905077815,0.79569546,2531.4,2531.3,1.3488]
[1749905078017,0.78983,2531.2,2531.1,3.8772]
[1749905078222,0.78983,2531.2,2531.1,0.6694]
[1749905078223,0.85792268,2531.2,2531.1,0.6694]
[1749905078424,0.78992,2530.9,2530.8,4.5431]
[1749905078626,0.78992,2530.9,2530.8,6.00713]
[1749905078926,0.78992,2530.9,2530.8,3.2078]
[1749905079114,0.78992,2530.9,2530.3,2.3594953]
[1749905079115,0.79005,2530.5,2530.4,3.8819]
[1749905079316,3.99785,2530.5,2530.4,0.6741]
[1749905079513,4.14721934,2530.5,2530.4,0.6741]
[1749905079730,0.79005,2530.5,2530.4,0.6741]
[1749905079919,10.24085,2530.5,2530.4,0.6741]
[1749905080117,7.03305,2530.5,2530.4,0.6741]
[1749905080322,10.24085,2530.5,2530.4,0.6741]
[1749905080921,7.03305,2530.5,2530.4,0.6741]
[1749905081316,10.24085,2530.5,2530.4,0.6741]
[1749905082216,1.97521,2530.4,2529.6,3.2078]
[1749905082417,9.4508,2530.5,2529.9,3.2078]
[1749905082621,9.4508,2530.5,2530.0,1.3467]
[1749905082821,0.79013,2530.3,2530.1,0.79015]
[1749905083119,3.2078,2530.5,2530.2,1.355]
[1749905083424,10.24185,2530.5,2530.4,0.79008]
[1749905083622,3.99786,2530.5,2530.3,1.44608]
[1749905083825,3.2078,2530.5,2530.4,2.14508]
[1749905084021,3.2078,2530.8,2530.4,1.355]
[1749905084228,3.2078,2530.8,2530.7,0.78999]
[1749905084529,6.24992546,2531.4,2530.7,3.2078]
[1749905084825,0.00592546,2531.4,2531.1,0.78986]
[1749905085022,0.00592546,2531.4,2531.1,3.99766]
[1749905087424,0.00592546,2531.4,2531.3,0.7898]
[1749905087827,0.00592546,2531.4,2531.2,2.1666]
[1749905088024,0.79570546,2531.4,2531.2,2.16661]
[1749905088533,0.79570546,2531.4,2531.2,2.16662]
[1749905088725,0.79570546,2531.4,2531.2,1.3768]
[1749905088928,0.7898,2531.3,2531.2,1.3768]
[1749905089321,0.7898,2531.3,2531.2,2.16663]
[1749905089528,0.7898,2531.3,2531.1,0.78985]
[1749905089729,0.7898,2531.3,2531.1,0.78984]
[1749905090235,0.6578,2531.3,2531.2,0.78983]
[1749905090535,6.9018,2531.3,2531.2,0.78983]
[1749905091134,7.69162,2531.3,2531.1,0.78984]
[1749905091432,0.06809268,2531.2,2531.1,0.78984]
[1749905091633,0.85792268,2531.2,2531.1,0.78984]
[1749905091838,0.06809268,2531.2,2531.1,0.78984]
[1749905092139,0.85793268,2531.2,2531.0,0.78987]
[1749905092637,0.78986,2531.1,2530.9,1.3417]
[1749905092835,0.78988,2531.1,2530.9,1.3417]
[1749905093140,7.10093268,2531.2,2530.9,1.3417]
[1749905093333,6.31109268,2531.2,2531.1,0.78986]
[1749905093838,6.31109268,2531.2,2531.1,3.99766]
[1749905093839,0.06809268,2531.2,2531.1,3.99766]
[1749905095237,0.06809268,2531.2,2531.1,3.2078]
[1749905095238,0.85792268,2531.2,2531.1,3.2078]
[1749905095538,0.85792268,2531.2,2531.1,3.99766]
[1749905095539,0.06809268,2531.2,2531.1,3.99766]
[1749905096638,0.00592546,2531.4,2531.3,0.7898]
[1749905097440,0.00592546,2531.4,2531.3,2.0994]
[1749905101336,0.79568546,2531.4,2531.3,2.0994]
[1749905101640,0.00592546,2531.4,2531.3,2.0994]
[1749905101840,33.3468,2531.9,2531.7,0.78965]
[1749905102138,3.99743,2531.9,2531.4,3.24628]
[1749905102341,3.99743,2531.9,2531.8,0.78964]
[1749905102535,3.2078,2531.9,2531.8,0.78964]
[1749905102842,0.7896,2532.0,2531.9,0.78959]
[1749905103345,0.00592546,2532.1,2532.0,0.78958]
[1749905104736,0.00592546,2532.1,2532.0,3.99738]
[1749905106247,0.79546546,2532.1,2532.0,3.99738]
[1749905107048,0.00592546,2532.1,2532.0,3.99738]
[1749905107541,0.79546546,2532.1,2532.0,3.2078]
[1749905107741,0.00592546,2532.1,2532.0,3.99738]
[1749905108445,0.00592546,2532.1,2532.0,3.2078]
[1749905108643,0.78967,2531.8,2531.7,3.99746]
[1749905109147,1.4691,2532.0,2531.9,0.78961]
[1749905109347,7.09748546,2532.1,2532.0,0.78958]
[1749905109938,0.00592546,2532.1,2532.0,0.78958]
[1749905111047,0.00592546,2532.1,2532.0,1.44408]
[1749905111549,0.00592546,2532.1,2532.0,4.65188]
[1749905116553,0.6493,2532.6,2532.5,0.78942]
[1749905118852,0.6493,2532.6,2532.5,3.99722]
[1749905119557,0.6493,2532.6,2532.5,5.34812]
[1749905120045,0.00592546,2532.8,2532.7,0.78936]
[1749905120449,0.00592546,2532.8,2532.6,0.78937]
[1749905120642,0.00592546,2532.8,2532.5,3.2078]
[1749905121051,0.78939,2532.6,2532.5,3.2078]
[1749905121748,0.78939,2532.6,2532.5,3.99722]
[1749905122056,0.78939,2532.6,2532.5,3.2078]
[1749905122255,0.78939,2532.6,2532.5,3.99722]
[1749905123054,0.78939,2532.6,2532.5,3.2078]
[1749905123853,0.78939,2532.6,2532.5,3.99722]
[1749905124256,0.78939,2532.6,2532.5,3.2078]
[1749905125250,7.08939,2532.6,2532.5,3.2078]
[1749905125450,0.78948,2532.3,2532.2,3.2078]
[1749905125756,0.85765268,2532.1,2532.0,0.78956]
[1749905126062,0.85766268,2532.1,2532.0,0.78958]
[1749905127659,0.78958,2532.0,2531.9,3.99738]
[1749905127848,0.78958,2532.0,2531.9,3.2078]
[1749905128047,2.11588,2532.0,2531.9,3.2078]
[1749905130060,2.11588,2532.0,2531.9,3.99741]
[1749905131056,2.11588,2532.0,2531.9,3.2078]
[1749905131963,2.11588,2532.0,2531.9,3.99741]
[1749905132658,0.06809268,2532.1,2532.0,0.78958]
[1749905133063,0.06809268,2532.1,2532.0,2.67358]
[1749905134451,0.634,2532.6,2532.5,0.78942]
[1749905134760,1.42339,2532.6,2532.5,0.78942]
[1749905137159,0.634,2532.6,2532.5,0.78942]
[1749905137359,0.00592546,2532.8,2532.7,0.78936]
[1749905138263,0.00592546,2532.8,2532.7,2.11916]
[1749905138565,0.00592546,2532.8,2532.5,0.78942]
[1749905138861,2.63348546,2532.8,2532.3,3.2078]
[1749905139061,0.78944,2532.5,2532.4,0.78943]
[1749905139764,0.78945,2532.4,2532.3,3.2078]
[1749905140062,0.78944,2532.5,2532.4,0.78944]
[1749905140863,0.7894,2532.6,2532.5,0.78939]
[1749905141064,1.45478,2532.7,2532.6,0.78939]
[1749905141366,2.39979751,2532.7,2532.6,0.78939]
[1749905142669,1.61041751,2532.7,2532.6,0.78939]
[1749905142969,0.94501751,2532.7,2532.6,0.78939]
[1749905143163,0.78939,2532.7,2532.6,0.78937]
[1749905143363,7.07926546,2532.8,2532.7,0.78936]
[1749905143570,8.02429832,2532.8,2532.7,0.78936]
[1749905143868,0.78938,2532.7,2532.6,0.78938]
[1749905144471,0.79525546,2532.8,2532.7,0.78936]
[1749905144764,8.02424059,2532.8,2532.7,0.78936]
[1749905145073,0.78937,2532.7,2532.6,0.78936]
[1749905145662,7.07927546,2532.8,2532.7,0.78936]
[1749905145863,8.024327,2532.8,2532.7,0.78936]
[1749905146166,8.024327,2532.8,2532.5,1.2613]
[1749905146167,0.78939,2532.6,2532.5,1.2613]
[1749905146373,0.78942,2532.5,2532.4,1.42024]
[1749905146671,0.78942,2532.5,2532.4,1.42022]
[1749905146969,0.78941,2532.6,2532.5,0.7894]
[1749905148469,0.78942,2532.5,2532.4,2.73134]
[1749905149167,0.78941,2532.6,2532.5,0.78941]
[1749905149576,0.78942,2532.5,2532.4,2.73134]
[1749905149963,0.78942,2532.5,2532.4,1.9419]
[1749905150162,0.78942,2532.5,2532.4,0.6308]
[1749905150667,0.78942,2532.5,2532.4,1.42025]
[1749905151969,0.78942,2532.5,2532.4,0.6308]
[1749905152570,0.78942,2532.5,2532.4,1.42025]
[1749905153674,0.78942,2532.5,2532.4,0.6308]
[1749905153968,0.78942,2532.5,2532.4,1.42025]
[1749905154172,0.78942,2532.5,2532.4,0.6308]
[1749905154672,0.78942,2532.5,2532.4,1.42025]
[1749905156070,0.78942,2532.5,2532.4,0.6308]
[1749905156568,0.06872968,2533.4,2532.7,3.94669]
[1749905156767,3.91077456,2533.8,2533.3,3.2078]
[1749905156982,3.91077456,2533.8,2533.7,3.99685]
[1749905159875,0.00592546,2534.0,2533.9,0.78899]
[1749905160877,0.00592546,2534.0,2533.9,2.05199]
[1749905161277,0.00592546,2534.0,2533.9,7.05199]
[1749905161572,6.579,2534.6,2534.5,0.7888]
[1749905163073,6.579,2534.7,2534.6,0.78877]
[1749905163881,9.79172546,2534.8,2534.7,0.78874]
[1749905164491,10.58043546,2534.8,2534.6,0.78875]
[1749905164773,10.58043546,2534.8,2534.6,0.78874]
[1749905165169,10.58043546,2534.8,2534.7,0.78874]
[1749905166072,9.79172546,2534.8,2534.7,0.78874]
[1749905166269,0.78874,2534.7,2534.6,0.78875]
[1749905166479,10.58044546,2534.8,2534.7,0.78874]
[1749905166668,6.58392546,2534.8,2534.7,3.99654]
[1749905166967,0.00592546,2534.8,2534.7,3.99654]
[1749905169767,0.00592546,2534.8,2534.7,8.99654]
[1749905170073,0.00592546,2534.8,2534.6,0.78875]
[1749905170282,0.00592546,2534.8,2534.7,0.78874]
[1749905178779,0.79463546,2534.8,2534.7,0.78874]
[1749905179677,0.07401814,2534.8,2534.7,0.78874]
[1749905180383,0.07401814,2534.8,2534.7,3.99654]
[1749905186285,8.14e-06,2534.8,2534.7,8.99654]
[1749905188284,8.14e-06,2534.8,2534.7,12.14253373]
[1749905188890,3.6e-06,2535.0,2534.9,0.78867]
[1749905189081,3.6e-06,2535.0,2534.9,31.80467]
[1749905189488,3.6e-06,2535.0,2534.9,33.72547]
[1749905193296,3.6e-06,2535.0,2534.9,36.87015045]
[1749905193492,3.6e-06,2535.0,2534.9,33.72547]
[1749905193890,3.6e-06,2535.0,2534.9,36.87015045]
[1749905194785,6.28e-06,2535.0,2534.9,36.87015045]
[1749905198796,6.28e-06,2535.0,2534.9,3.14671883]
[1749905198996,6.28e-06,2535.0,2534.9,27.61671883]
[1749905202893,6.28e-06,2535.0,2534.9,25.25867]
[1749905203690,6.28e-06,2535.0,2534.9,27.6174767]
[1749905204597,6.28e-06,2535.0,2534.9,25.25867]
[1749905208607,6.28e-06,2535.0,2534.9,0.78867]
[1749905209007,5.00000628,2535.0,2534.7,5.56978884]
[1749905209306,0.78871,2534.8,2534.7,3.2078]
[1749905209712,6.43091,2534.8,2534.7,3.99654]
[1749905210005,6.43091,2534.8,2534.7,3.2078]
[1749905210507,0.6422,2534.8,2534.7,3.99654]
[1749905220515,1.9704,2534.8,2534.7,3.99654]
[1749905222213,1.9704,2534.8,2534.7,3.2078]
[1749905222422,6.9704,2534.8,2534.4,3.2078]
[1749905222709,0.7888,2534.5,2534.4,3.2078]
[1749905222916,7.1828,2534.5,2534.4,3.2078]
[1749905223215,12.1828,2534.5,2534.4,3.99663]
[1749905223410,7.1828,2534.5,2534.4,3.2078]
[1749905224009,0.78883,2534.4,2534.3,0.78884]
[1749905224204,2.70013,2534.4,2534.3,0.78884]
[1749905225612,0.78887,2534.3,2534.2,0.78887]
[1749905225809,2.06357,2534.3,2534.2,0.78887]
[1749905226218,1.2747,2534.3,2534.2,0.78887]
[1749905226417,2.06356,2534.3,2534.2,0.78887]
[1749905226717,1.2747,2534.3,2534.2,0.78887]
[1749905227017,2.06356,2534.3,2534.2,0.78887]
[1749905227213,1.2747,2534.3,2534.2,0.78887]
[1749905227922,0.78892,2534.1,2534.0,4.78105884]
[1749905228215,6.395,2534.1,2533.8,0.78901]
[1749905228409,0.78905,2533.7,2533.6,3.2078]
[1749905228612,7.18405,2533.7,2533.6,3.2078]
[1749905229520,0.78908,2533.6,2533.5,0.00592546]
[1749905229719,2.03758,2533.6,2533.5,0.00592546]
[1749905233410,0.78908,2533.6,2533.5,0.00592546]
[1749905233615,9.6048,2533.8,2533.7,0.78905]
[1749905234119,9.6048,2533.8,2533.5,0.00592546]
[1749905234325,0.78908,2533.6,2533.5,0.00592546]
[1749905235526,0.78908,2533.6,2533.5,0.79503546]
[1749905235829,0.78908,2533.6,2533.5,0.00592546]
[1749905236627,0.78908,2533.6,2533.5,0.79503546]
[1749905236827,0.78908,2533.6,2533.5,0.00592546]
[1749905237623,0.78908,2533.6,2533.5,0.79503546]
[1749905237830,0.78908,2533.6,2533.5,0.00592546]
[1749905240531,0.85717268,2533.6,2533.5,0.00592546]
[1749905240921,5.85717268,2533.6,2533.5,0.00592546]
[1749905241428,0.78924,2533.1,2533.0,1.41387]
[1749905242727,0.78924,2533.1,2533.0,0.6246]
[1749905243225,0.78924,2533.1,2533.0,1.41387]
[1749905243924,0.78924,2533.1,2533.0,0.6246]
[1749905244222,0.7893,2532.9,2532.8,3.21372546]
[1749905244623,0.7893,2532.9,2532.8,0.00592546]
[1749905244824,7.1873,2532.9,2532.8,0.00592546]
[1749905246225,3.2078,2533.1,2533.0,0.78927]
[1749905246422,3.99706,2533.1,2533.0,0.78927]
[1749905247823,0.78927,2533.0,2532.9,1.41038]
[1749905248022,0.78927,2533.0,2532.9,2.68598]
[1749905248717,0.78926,2533.1,2533.0,0.78927]
[1749905248919,0.78918,2533.3,2533.2,0.78916]
[1749905249126,7.7012,2533.5,2533.4,0.78914]
[1749905249328,8.49031,2533.5,2533.4,0.78914]
[1749905250032,7.81331,2533.5,2533.4,0.78914]
[1749905250232,7.81331,2533.5,2533.1,1.2756]
[1749905250233,7.0242,2533.5,2533.1,1.2756]
[1749905250529,0.78916,2533.4,2533.3,0.78914]
[1749905250826,7.13713,2533.5,2533.4,0.78914]
[1749905251430,10.41298268,2533.6,2533.5,0.78911]
[1749905253634,4.06498268,2533.6,2533.5,0.78911]
[1749905253834,7.20518268,2533.6,2533.5,0.78911]
[1749905254735,7.13709,2533.6,2533.5,0.78911]
[1749905255735,0.00386337,2533.9,2533.8,0.78902]
[1749905256737,0.00386337,2533.9,2533.8,2.76222]
[1749905257232,0.00386337,2533.9,2533.8,4.33547884]
[1749905257833,0.00386337,2533.9,2533.8,5.12175083]
[1749905258036,0.00386337,2533.9,2533.8,10.12175083]
[1749905258234,0.00386337,2533.9,2533.8,7.76222]
[1749905258838,0.00386337,2533.9,2533.8,5.11980815]
[1749905259139,0.00386337,2533.9,2533.8,2.76222]
[1749905260438,0.00386337,2533.9,2533.8,4.33281011]
[1749905264342,0.00386337,2533.9,2533.8,2.76222]
[1749905266440,0.00386337,2533.9,2533.8,4.33003059]
[1749905267243,3.37e-06,2533.9,2533.8,28.59203059]
[1749905268338,3.37e-06,2533.9,2533.8,33.59203059]
[1749905268536,3.37e-06,2533.9,2533.8,38.36022]
[1749905268732,3.37e-06,2533.9,2533.8,40.71086329]
[1749905268935,3.37e-06,2533.9,2533.8,40.71091437]
[1749905269137,3.37e-06,2533.9,2533.8,38.36022]
[1749905269647,3.37e-06,2533.9,2533.8,39.92717558]
[1749905269942,0.06809605,2533.9,2533.8,39.92717558]
[1749905270344,0.06809605,2533.9,2533.8,4.32917558]
[1749905270648,0.06809605,2533.9,2533.8,34.92317558]
[1749905272746,0.06809605,2533.9,2533.8,34.91317558]
[1749905275349,0.06809605,2533.9,2533.8,33.57597558]
[1749905276450,0.06809605,2533.9,2533.8,32.00902]
[1749905277249,0.06809605,2533.9,2533.8,34.35971437]
[1749905278149,0.06809605,2533.9,2533.8,35.62351437]
[1749905279346,0.06809605,2533.9,2533.8,33.27282]
[1749905279855,6.05e-06,2533.9,2533.8,38.27282]
[1749905280543,6.05e-06,2533.9,2533.8,41.41750045]
[1749905281341,1.51e-06,2534.1,2534.0,0.78896]
[1749905281545,1.51e-06,2534.1,2534.0,31.34491595]
[1749905281746,1.51e-06,2534.1,2534.0,36.34491595]
[1749905283042,1.51e-06,2534.1,2534.0,33.20076]
[1749905284858,1.51e-06,2534.1,2534.0,34.47766]
[1749905287361,1.51e-06,2534.1,2534.0,29.47766]
[1749905288555,1.51e-06,2534.1,2534.0,28.16876]
[1749905288969,1.51e-06,2534.1,2534.0,31.3175156]
[1749905289455,1.51e-06,2534.1,2534.0,28.16876]
[1749905291648,1.51e-06,2534.1,2534.0,34.45676]
[1749905292663,1.51e-06,2534.1,2534.0,37.60582755]
[1749905295651,1.51e-06,2534.1,2534.0,3.99676]
[1749905296262,5.00000151,2534.1,2534.0,3.2078]
[1749905296465,5.78892151,2534.1,2534.0,3.99676]
[1749905296657,5.78892151,2534.1,2534.0,3.2078]
[1749905298356,5.00000151,2534.1,2533.8,1.57492723]
[1749905298564,8.2221,2534.0,2533.6,4.78272723]
[1749905298860,8.2221,2534.0,2533.7,0.78903]
[1749905299057,0.78902,2533.8,2533.7,0.78902]
[1749905299459,5.78902,2533.8,2533.7,0.78902]
[1749905301467,9.01106,2534.0,2533.9,0.78899]
[1749905301658,7.72636,2534.0,2533.9,0.78899]
[1749905301858,0.78899,2533.9,2533.8,0.789]
[1749905302062,0.78903,2533.8,2533.7,0.78904]
[1749905302467,0.789,2533.9,2533.6,3.2078]
[1749905302663,0.78902,2533.8,2533.7,0.78903]
[1749905302864,0.78901,2533.9,2533.8,0.78902]
[1749905303270,7.72738,2534.0,2533.9,0.78899]
[1749905303757,12.72738,2534.0,2533.9,0.78899]
[1749905304166,0.789,2533.9,2533.8,0.78901]
[1749905304865,7.72738,2534.0,2533.8,0.78901]
[1749905305066,7.72738,2534.0,2533.9,0.78899]
[1749905305463,7.72738,2534.0,2533.8,0.78899]
[1749905305662,7.72738,2534.0,2533.6,3.2078]
[1749905306169,7.72738,2534.0,2533.8,0.789]
[1749905306367,0.78899,2533.9,2533.8,0.789]
[1749905306970,0.78899,2533.9,2533.6,3.2078]
[1749905307267,0.78905,2533.7,2533.6,3.2078]
[1749905307472,0.78904,2533.8,2533.7,0.78905]
[1749905308370,0.78905,2533.7,2533.6,3.2078]
[1749905308557,3.2078,2533.8,2533.2,3.2078]
[1749905308762,0.6511,2533.6,2533.3,0.78915]
[1749905308962,0.78913,2533.5,2533.3,0.78915]
[1749905309163,1.4402,2533.6,2533.4,0.78914]
[1749905309364,0.78911,2533.5,2533.4,0.78914]
[1749905309669,0.78913,2533.5,2533.3,0.78917]
[1749905309867,1.4402,2533.6,2533.4,0.78914]
[1749905310069,0.78911,2533.5,2533.4,0.78914]
[1749905311766,7.7142,2533.6,2533.5,0.78911]
[1749905311962,0.6511,2533.6,2533.5,0.78911]
[1749905317075,3.2078,2533.8,2533.7,0.78905]
[1749905318370,0.78903,2533.8,2533.6,3.2078]
[1749905318677,0.7891,2533.6,2533.5,0.78911]
[1749905319375,1.923,2533.6,2533.5,0.78911]
[1749905320577,0.06809268,2533.5,2533.4,0.78912]
[1749905320778,1.34919268,2533.5,2533.4,0.78912]
[1749905323482,0.06809268,2533.5,2533.4,0.78912]
[1749905323978,0.06809268,2533.5,2533.4,14.07062]
[1749905325170,2.68e-06,2533.5,2533.4,14.07062]
[1749905326178,2.68e-06,2533.5,2533.4,18.00311217]
[1749905327380,2.68e-06,2533.5,2533.4,42.17811217]
[1749905327883,1.51e-06,2534.1,2534.0,0.78896]
[1749905328185,1.51e-06,2534.1,2534.0,37.59545573]
[1749905328487,1.51e-06,2534.1,2534.0,7.14545573]
[1749905328780,1.51e-06,2534.1,2534.0,34.44676]
[1749905329187,1.51e-06,2534.1,2534.0,35.77816]
[1749905331075,1.51e-06,2534.1,2534.0,36.41296]
[1749905334489,1.51e-06,2534.1,2534.0,38.76856403]
[1749905335184,1.51e-06,2534.1,2534.0,36.41296]
[1749905335385,1.51e-06,2534.1,2534.0,38.76835256]
[1749905342404,1.51e-06,2534.1,2534.0,36.41296]
[1749905345107,4.19e-06,2534.1,2534.0,36.41296]
[1749905345401,4.19e-06,2534.1,2534.0,41.41296]
[1749905345599,4.19e-06,2534.1,2534.0,44.56165573]
[1749905346008,4.19e-06,2534.1,2534.0,41.41296]
[1749905346204,4.19e-06,2534.1,2534.0,44.55138601]
[1749905347702,0.6256,2534.8,2534.7,0.78874]
[1749905347903,0.6256,2534.8,2534.7,24.95474]
[1749905352207,0.6231,2535.1,2535.0,0.78864]
[1749905352403,0.6231,2535.1,2535.0,24.95364]
[1749905354612,0.6231,2535.1,2535.0,27.30742935]
[1749905358310,0.6231,2535.1,2535.0,3.14242935]
[1749905358508,0.6231,2535.1,2535.0,24.95064]
[1749905359014,1.9257,2535.1,2535.0,24.95064]
[1749905359811,1.9257,2535.1,2535.0,0.78864]
[1749905360212,1.99379268,2535.1,2535.0,0.78864]
[1749905365610,0.78864,2535.0,2534.6,5.56158935]
[1749905365812,0.78868,2534.9,2534.7,0.78871]
[1749905366015,2.05842,2534.8,2534.7,0.78874]
[1749905366306,1.9321,2534.8,2534.7,0.78874]
[1749905366510,6.9321,2534.8,2534.7,0.78874]
[1749905367619,6.9321,2534.8,2534.6,3.2078]
[1749905367819,1.3355,2534.7,2534.6,3.2078]
[1749905368222,6.3355,2534.7,2534.6,3.99657]
[1749905368415,7.12424,2534.7,2534.5,0.79470546]
[1749905368621,0.78877,2534.6,2534.5,0.00592546]
[1749905368814,8.05772511,2534.6,2534.5,0.79472546]
[1749905369123,8.05772511,2534.6,2534.5,0.00592546]
[1749905369510,7.12427,2534.6,2534.5,0.00592546]
[1749905369717,8.05715881,2534.6,2534.5,0.00592546]
[1749905373221,0.78886,2534.3,2534.2,3.2078]
[1749905373419,0.78896,2534.1,2534.0,0.78895]
[1749905373625,2.72101,2534.2,2534.1,0.78892]
[1749905373826,1.45231,2534.2,2534.1,0.78892]
[1749905375430,0.78895,2534.1,2534.0,0.78893]
[1749905378322,0.78896,2534.0,2533.9,4.00268546]
[1749905378523,0.78896,2534.0,2533.9,0.00592546]